fUSD/lending_fUSD_20240804
["ID","MTS","AMOUNT","RATE_DAILY","PERIOD"]
[334174874,1722808242263,-533.97,0.00023013,9]
[334174876,1722808242272,-500.0,0.00023013,9]
[334174878,1722808242281,-1078.41,0.00023013,9]
[334174880,1722808242291,-500.0,0.00023013,9]
[334174882,1722808242301,-1158.88,0.00023013,9]
[334174883,1722808242310,-500.0,0.00023013,9]
[334174885,1722808242319,-500.0,0.00023013,9]
[334174887,1722808242329,-1173.95,0.00023013,9]
[334174889,1722808242340,-500.0,0.00023013,9]
[334174891,1722808242355,-502.72,0.00023013,9]
[334174893,1722808242364,-500.0,0.00023013,9]
[334174895,1722808242374,-1111.03,0.00023013,9]
[334174897,1722808242384,-617.41,0.00023013,9]
[334174899,1722808242394,-500.0,0.00023013,9]
[334174901,1722808242403,-500.0,0.00023013,9]
[334174903,1722808242414,-557.56,0.00023013,9]
[334174905,1722808242424,-500.0,0.00023013,9]
[334174907,1722808242436,-500.0,0.00023013,9]
[334174908,1722808242446,-500.0,0.00023013,9]
[334174910,1722808242455,-500.0,0.00023013,9]
[334174912,1722808242465,-500.0,0.00023013,9]
[334174914,1722808242474,-500.0,0.00023013,9]
[334174916,1722808242484,-1071.68,0.00023013,9]
[334174918,1722808242494,-544.83,0.00023013,9]
[334174920,1722808242504,-783.99,0.00023013,9]
[334174922,1722808242513,-1352.26,0.00023013,9]
[334174924,1722808242524,-500.0,0.00023013,9]
[334174926,1722808242534,-500.0,0.00023013,9]
[334174951,1722808242543,-500.0,0.00023013,9]
[334174953,1722808242773,-776.12,0.00023013,9]
[334174956,1722808242784,-862.87,0.00023013,9]
[334174958,1722808242794,-629.8,0.00023013,9]
[334174961,1722808242803,-500.0,0.00023013,9]
[334174964,1722808242813,-829.41,0.00023013,9]
[334174967,1722808242822,-336.29248132,0.00023013,9]
[334174973,1722808242844,-255.58751868,0.00023013,9]
[334174976,1722808242854,-977.86,0.00023013,9]
[334174979,1722808242863,-1269.86905597,0.00023013,9]
[334174984,1722808242883,-120.83094403,0.00023013,9]
[334174987,1722808242892,-654.65,0.00023013,9]
[334174990,1722808242902,-879.33,0.00023013,9]
[334174992,1722808242912,-934.37,0.00023013,9]
[334174994,1722808242922,-500.0,0.00023013,9]
[334174998,1722808242934,-500.0,0.00023013,9]
[334175001,1722808242943,-959.32,0.00023013,9]
[334175003,1722808242953,-500.0,0.00023013,9]
[334175005,1722808242963,-500.0,0.00023013,9]
[334175007,1722808242972,-500.0,0.00023013,9]
[334175009,1722808242982,-500.0,0.00023013,9]
[334175011,1722808242991,-500.0,0.00023013,9]
[334175013,1722808243001,-931.56,0.00023013,9]
[334175015,1722808243010,-500.0,0.00023013,9]
[334175017,1722808243021,-449.62687939,0.00023013,9]
[334175019,1722808243034,-50.37312061,0.00023013,9]
[334175023,1722808243044,-500.0,0.00023013,9]
[334175026,1722808243054,-500.0,0.00023013,9]
[334175030,1722808243064,-500.0,0.00023013,9]
[334175033,1722808243073,-1737.81,0.00023013,9]
[334175035,1722808243083,-752.87,0.00023013,9]
[334175037,1722808243093,-500.0,0.00023013,9]
[334175039,1722808243102,-500.0,0.00023013,9]
[334175041,1722808243112,-500.0,0.00023013,9]
[334175042,1722808243124,-609.28,0.00023013,9]
[334175044,1722808243135,-500.0,0.00023013,9]
[334175046,1722808243146,-500.0,0.00023013,9]
[334175048,1722808243156,-500.0,0.00023013,9]
[334175050,1722808243167,-500.0,0.00023013,9]
[334175052,1722808243177,-612.87,0.00023013,9]
[334175054,1722808243190,-500.0,0.00023013,9]
[334175056,1722808243199,-500.0,0.00023013,9]
[334175058,1722808243209,-500.0,0.00023013,9]
[334175060,1722808243218,-500.0,0.00023013,9]
[334175062,1722808243228,-763.92,0.00023013,9]
[334175064,1722808243238,-500.0,0.00023013,9]
[334175066,1722808243247,-99.55320823,0.00023013,9]
[334175068,1722808243260,-400.44679177,0.00023013,9]
[334175071,1722808243270,-578.84,0.00023013,9]
[334175072,1722808243280,-63.54276476,0.00023013,9]
[334175076,1722808243304,-436.45723524,0.00023013,9]
[334175078,1722808243314,-500.0,0.00023013,9]
[334175080,1722808243325,-500.0,0.00023013,9]
[334175082,1722808243337,-73.84276486,0.00023013,9]
[334175084,1722808243351,-426.15723514,0.00023013,9]
[334175086,1722808243361,-626.96,0.00023013,9]
[334175088,1722808243370,-500.0,0.00023013,9]
[334175090,1722808243380,-500.0,0.00023013,9]
[334175092,1722808243390,-500.0,0.00023013,9]
[334175093,1722808243400,-569.25,0.00023013,9]
[334175095,1722808243410,-599.92,0.00023013,9]
[334175097,1722808243425,-500.0,0.00023013,9]
[334175099,1722808243437,-500.0,0.00023013,9]
[334175101,1722808243447,-500.0,0.00023013,9]
[334175103,1722808243456,-500.0,0.00023013,9]
[334175105,1722808243466,-500.0,0.00023013,9]
[334175107,1722808243476,-686.04,0.00023013,9]
[334175109,1722808243485,-500.0,0.00023013,9]
[334175111,1722808243495,-500.0,0.00023013,9]
[334175113,1722808243505,-500.0,0.00023013,9]
[334175115,1722808243515,-500.0,0.00023013,9]
[334175117,1722808243525,-500.0,0.00023013,9]
[334175119,1722808243534,-760.21,0.00023013,9]
[334175121,1722808243544,-500.0,0.00023013,9]
[334175123,1722808243554,-500.0,0.00023013,9]
[334175125,1722808243563,-738.66,0.00023013,9]
[334175127,1722808243573,-663.15,0.00023013,9]
[334175128,1722808243583,-411.65,0.00023013,9]
[334175130,1722808243593,-500.0,0.00023013,9]
[334175132,1722808243602,-601.43,0.00023013,9]
[334175134,1722808243612,-500.0,0.00023013,9]
[334175136,1722808243622,-500.0,0.00023013,9]
[334175138,1722808243632,-500.0,0.00023013,9]
[334175140,1722808243642,-639.52,0.00023013,9]
[334175142,1722808243652,-504.6,0.00023013,9]
[334175144,1722808243661,-765.65,0.00023013,9]
[334175146,1722808243671,-500.0,0.00023013,9]
[334175148,1722808243681,-768.46,0.00023013,9]
[334175150,1722808243699,-767.82,0.00023013,9]
[334175152,1722808243709,-500.0,0.00023013,9]
[334175154,1722808243719,-558.54,0.00023013,9]
[334175156,1722808243728,-500.0,0.00023013,9]
[334175158,1722808243738,-301.58410902,0.00023013,9]
[334175254,1722808244729,-198.41589098,0.00023013,9]
[334175256,1722808244738,-306.84654822,0.00023013,9]
[334175258,1722808244749,-630.42345178,0.00023013,9]
[334175260,1722808244759,-121.64301871,0.00023013,9]
[334175262,1722808244770,-378.35698129,0.00023013,9]
[334175264,1722808244780,-702.85,0.00023013,9]
[334175266,1722808244789,-500.0,0.00023013,9]
[334175268,1722808244799,-500.0,0.00023013,9]
[334175270,1722808244808,-997.01,0.00023013,9]
[334175272,1722808244818,-500.0,0.00023013,9]
[334175274,1722808244827,-500.0,0.00023013,9]
[334175282,1722808244907,-8.04916725,0.00023013,9]
[334175283,1722808244919,-491.95083275,0.00023013,9]
[334175284,1722808244928,-130.99679261,0.00023013,9]
[334175285,1722808244940,-369.00320739,0.00023013,9]
[334175286,1722808244949,-991.62,0.00023013,9]
[334175287,1722808244958,-584.47,0.00023013,9]
[334175288,1722808244968,-500.0,0.00023013,9]
[334175289,1722808244977,-500.0,0.00023013,9]
[334175290,1722808244986,-500.0,0.00023013,9]
[334175291,1722808244995,-513.45,0.00023013,9]
[334175292,1722808245004,-500.0,0.00023013,9]
[334175294,1722808245014,-361.22794104,0.00023013,9]
[334175296,1722808245025,-138.77205896,0.00023013,9]
[334175298,1722808245034,-500.0,0.00023013,9]
[334175300,1722808245044,-960.38,0.00023013,9]
[334175302,1722808245052,-500.0,0.00023013,9]
[334175303,1722808245062,-500.0,0.00023013,9]
[334175305,1722808245071,-500.0,0.00023013,9]
[334175307,1722808245080,-500.0,0.00023013,9]
[334175309,1722808245089,-761.04,0.00023013,9]
[334175311,1722808245099,-597.42,0.00023013,9]
[334175312,1722808245108,-576.15178825,0.00023013,9]
[334175314,1722808245117,-544.40661672,0.00023013,9]
[334175316,1722808245128,-408.26338328,0.00023013,9]
[334175318,1722808245138,-500.0,0.00023013,9]
[334175320,1722808245148,-500.0,0.00023013,9]
[334175322,1722808245157,-500.0,0.00023013,9]
[334175324,1722808245166,-500.0,0.00023013,9]
[334175326,1722808245175,-552.06,0.00023013,9]
[334175328,1722808245184,-500.0,0.00023013,9]
[334175330,1722808245193,-500.0,0.00023013,9]
[334175331,1722808245202,-230.3965703,0.00023013,9]
[334175333,1722808245211,-569.66,0.00023013,9]
[334175335,1722808245220,-177.78597046,0.00023013,9]
[334175337,1722808245230,-500.0,0.00023013,9]
[334175339,1722808245239,-500.0,0.00023013,9]
[334175341,1722808245248,-500.0,0.00023013,9]
[334175343,1722808245258,-500.0,0.00023013,9]
[334175345,1722808245267,-500.0,0.00023013,9]
[334175347,1722808245275,-544.16,0.00023013,9]
[334175349,1722808245284,-500.0,0.00023013,9]
[334175351,1722808245293,-382.18270596,0.00023013,9]
[334175355,1722808245325,-571.80729404,0.00023013,9]
[334175357,1722808245334,-500.0,0.00023013,9]
[334175359,1722808245346,-500.0,0.00023013,9]
[334175361,1722808245355,-533.01,0.00023013,9]
[334175363,1722808245365,-500.0,0.00023013,9]
[334175364,1722808245374,-1373.87,0.00023013,9]
[334175366,1722808245383,-500.0,0.00023013,9]
[334175368,1722808245393,-500.0,0.00023013,9]
[334175370,1722808245403,-714.14,0.00023013,9]
[334175372,1722808245413,-500.0,0.00023013,9]
[334175374,1722808245425,-500.0,0.00023013,9]
[334175376,1722808245435,-500.0,0.00023013,9]
[334175378,1722808245445,-1112.58,0.00023013,9]
[334175380,1722808245454,-500.0,0.00023013,9]
[334175382,1722808245464,-500.0,0.00023013,9]
[334175384,1722808245473,-500.0,0.00023013,9]
[334175386,1722808245482,-500.0,0.00023013,9]
[334175388,1722808245492,-782.39,0.00023013,9]
[334175389,1722808245501,-500.0,0.00023013,9]
[334175391,1722808245511,-500.0,0.00023013,9]
[334175393,1722808245520,-500.0,0.00023013,9]
[334175395,1722808245530,-500.0,0.00023013,9]
[334175398,1722808245542,-500.0,0.00023013,9]
[334175399,1722808245553,-150.0,0.00023013,9]
[334175402,1722808245563,-4199.62,0.00023013,9]
[334175404,1722808245572,-500.0,0.00023013,9]
[334175406,1722808245581,-500.0,0.00023013,9]
[334175408,1722808245590,-499.70010411,0.00023013,9]
[334175410,1722808245600,-500.0,0.00023013,9]
[334175412,1722808245610,-722.13,0.00023013,9]
[334175414,1722808245620,-500.0,0.00023013,9]
[334175415,1722808245629,-500.0,0.00023013,9]
[334175417,1722808245639,-526.91340958,0.00023013,9]
[334175419,1722808245648,-623.82,0.00023013,9]
[334175421,1722808245658,-517.68,0.00023013,9]
[334175424,1722808245667,-500.0,0.00023013,9]
[334175425,1722808245677,-500.0,0.00023013,9]
[334175427,1722808245688,-500.0,0.00023013,9]
[334175430,1722808245697,-500.0,0.00023013,9]
[334175432,1722808245707,-500.0,0.00023013,9]
[334175433,1722808245716,-500.0,0.00023013,9]
[334175436,1722808245725,-500.0,0.00023013,9]
[334175439,1722808245734,-500.0,0.00023013,9]
[334175441,1722808245743,-5815.71,0.00023013,9]
[334175444,1722808245752,-883.43,0.00023013,9]
[334175447,1722808245761,-772.68,0.00023013,9]
[334175450,1722808245770,-841.1,0.00023013,9]
[334175453,1722808245780,-500.0,0.00023013,9]
[334175456,1722808245790,-500.0,0.00023013,9]
[334175459,1722808245799,-500.0,0.00023013,9]
[334175462,1722808245810,-500.0,0.00023013,9]
[334175465,1722808245819,-500.0,0.00023013,9]
[334175467,1722808245831,-500.0,0.00023013,9]
[334175469,1722808245840,-500.0,0.00023013,9]
[334175471,1722808245848,-500.0,0.00023013,9]
[334175473,1722808245858,-500.0,0.00023013,9]
[334175476,1722808245867,-1089.56,0.00023013,9]
[334175479,1722808245876,-500.0,0.00023013,9]
[334175481,1722808245886,-500.0,0.00023013,9]
[334175483,1722808245895,-500.0,0.00023013,9]
[334175485,1722808245905,-666.19066273,0.00023013,9]
[334175488,1722808245918,-539.06283141,0.00023013,9]
[334175490,1722808245934,-703.90320097,0.00023013,9]
[334175492,1722808245945,-4367.73330489,0.00023013,9]
[334175494,1722808245955,-500.0,0.00023013,9]
[334175496,1722808245964,-500.0,0.00023013,9]
[334175498,1722808245974,-500.0,0.00023013,9]
[334175500,1722808245984,-500.0,0.00023013,9]
[334175502,1722808245994,-757.39,0.00023013,9]
[334175504,1722808246005,-517.23,0.00023013,9]
[334175506,1722808246016,-500.0,0.00023013,9]
[334175508,1722808246026,-500.0,0.00023013,9]
[334175510,1722808246036,-500.0,0.00023013,9]
[334175512,1722808246047,-500.0,0.00023013,9]
[334175514,1722808246057,-2014.44,0.00023013,9]
[334175515,1722808246066,-500.0,0.00023013,9]
[334175517,1722808246075,-500.0,0.00023013,9]
[334175519,1722808246086,-850.93,0.00023013,9]
[334175521,1722808246098,-981.8,0.00023013,9]
[334175523,1722808246109,-726.99,0.00023013,9]
[334175525,1722808246120,-500.0,0.00023013,9]
[334175527,1722808246130,-1454.57,0.00023013,9]
[334175529,1722808246141,-500.0,0.00023013,9]
[334175531,1722808246151,-500.0,0.00023013,9]
[334175533,1722808246161,-500.0,0.00023013,9]
[334175535,1722808246171,-500.0,0.00023013,9]
[334175537,1722808246180,-500.0,0.00023013,9]
[334175539,1722808246190,-500.0,0.00023013,9]
[334175541,1722808246199,-500.0,0.00023013,9]
[334175543,1722808246208,-618.94,0.00023013,9]
[334175545,1722808246217,-500.0,0.00023013,9]
[334175547,1722808246226,-500.0,0.00023013,9]
[334175549,1722808246236,-1211.17,0.00023013,9]
[334175551,1722808246245,-1327.45,0.00023013,9]
[334175553,1722808246254,-1177.64,0.00023013,9]
[334175555,1722808246264,-500.0,0.00023013,9]
[334175556,1722808246273,-500.0,0.00023013,9]
[334175558,1722808246282,-634.81,0.00023013,9]
[334175560,1722808246292,-1061.58,0.00023013,9]
[334175562,1722808246302,-3417.42,0.00023013,9]
[334175563,1722808246311,-500.0,0.00023013,9]
[334175565,1722808246320,-500.0,0.00023013,9]
[334175567,1722808246330,-500.0,0.00023013,9]
[334175569,1722808246339,-500.0,0.00023013,9]
[334175571,1722808246352,-500.0,0.00023013,9]
[334175572,1722808246361,-511.01,0.00023013,9]
[334175574,1722808246370,-500.0,0.00023013,9]
[334175576,1722808246380,-2238.72,0.00023013,9]
[334175578,1722808246390,-1163.48,0.00023013,9]
[334175579,1722808246399,-500.0,0.00023013,9]
[334175581,1722808246409,-500.0,0.00023013,9]
[334175583,1722808246419,-500.0,0.00023013,9]
[334175584,1722808246430,-500.0,0.00023013,9]
[334175586,1722808246440,-500.0,0.00023013,9]
[334175588,1722808246449,-500.0,0.00023013,9]
[334175589,1722808246458,-514.68,0.00023013,9]
[334175590,1722808246468,-500.0,0.00023013,9]
[334175591,1722808246478,-500.0,0.00023013,9]
[334175592,1722808246487,-1757.81,0.00023013,9]
[334175593,1722808246496,-500.0,0.00023013,9]
[334175594,1722808246506,-500.0,0.00023013,9]
[334175595,1722808246515,-500.0,0.00023013,9]
[334175596,1722808246524,-1033.23,0.00023013,9]
[334175597,1722808246534,-500.0,0.00023013,9]
[334175598,1722808246543,-643.26,0.00023013,9]
[334175599,1722808246553,-500.0,0.00023013,9]
[334175600,1722808246562,-1694.4023079,0.00023013,9]
[334175602,1722808246576,-5680.49783588,0.00023013,9]
[334175604,1722808246587,-5114.59985622,0.00023013,9]
[334175605,1722808246596,-500.0,0.00023013,9]
[334175606,1722808246606,-500.0,0.00023013,9]
[334175607,1722808246615,-1276.03,0.00023013,9]
[334175609,1722808246624,-529.58,0.00023013,9]
[334175611,1722808246634,-500.0,0.00023013,9]
[334175614,1722808246644,-779.99,0.00023013,9]
[334175617,1722808246653,-500.0,0.00023013,9]
[334175620,1722808246663,-500.0,0.00023013,9]
[334175624,1722808246674,-2981.05,0.00023013,9]
[334175627,1722808246683,-9583.32176469,0.00023013,9]
[334175631,1722808246695,-284.87,0.00023013,9]
[334175635,1722808246707,-385.66261705,0.00023013,9]
[334175639,1722808246718,-1113.93944268,0.00023013,9]
[334175643,1722808246730,-310.92617558,0.00023013,9]
[334175646,1722808246740,-500.0,0.00023013,9]
[334175650,1722808246749,-500.0,0.00023013,9]
[334175654,1722808246758,-595.44,0.00023013,9]
[334175658,1722808246769,-500.0,0.00023013,9]
[334175660,1722808246779,-614.4,0.00023013,9]
[334175664,1722808246788,-634.34,0.00023013,9]
[334175667,1722808246798,-500.0,0.00023013,9]
[334175671,1722808246807,-500.0,0.00023013,9]
[334175674,1722808246816,-500.0,0.00023013,9]
[334175676,1722808246825,-120.50498193,0.00023013,9]
[334175679,1722808246837,-379.49501807,0.00023013,9]
[334175682,1722808246847,-500.0,0.00023013,9]
[334175684,1722808246856,-500.0,0.00023013,9]
[334175686,1722808246867,-221.15498193,0.00023013,9]
[334175688,1722808246879,-690.03922118,0.00023013,9]
[334175690,1722808246890,-727.87663497,0.00023013,9]
[334175692,1722808246902,-90.87916192,0.00023013,9]
[334175693,1722808246911,-500.0,0.00023013,9]
[334175695,1722808246921,-326.24939792,0.00023013,9]
[334175697,1722808246933,-173.75060208,0.00023013,9]
[334175699,1722808246942,-540.84,0.00023013,9]
[334175701,1722808246952,-500.0,0.00023013,9]
[334175703,1722808246961,-331.65409792,0.00023013,9]
[334175705,1722808246973,-58.40590208,0.00023013,9]
[334175706,1722808246982,-597.73409792,0.00023013,9]
[334175708,1722808246993,-674.08691707,0.00023013,9]
[334175710,1722808247004,-533.32290302,0.00023013,9]
[334175712,1722808247016,-21431.63608199,0.00023013,9]
[334175714,1722808247026,-500.0,0.00023013,9]
[334175716,1722808247035,-536.4,0.00023013,9]
[334175718,1722808247045,-500.0,0.00023013,9]
[334175720,1722808247054,-500.0,0.00023013,9]
[334175722,1722808247064,-1200.59,0.00023013,9]
[334175724,1722808247073,-500.0,0.00023013,9]
[334175726,1722808247083,-569.41,0.00023013,9]
[334175727,1722808247092,-4698.62,0.00023013,9]
[334175729,1722808247102,-568.61,0.00023013,9]
[334175731,1722808247112,-500.0,0.00023013,9]
[334175733,1722808247123,-1192.88,0.00023013,9]
[334175735,1722808247132,-1281.98,0.00023013,9]
[334175737,1722808247142,-1271.97,0.00023013,9]
[334175738,1722808247151,-500.0,0.00023013,9]
[334175740,1722808247160,-500.0,0.00023013,9]
[334175742,1722808247170,-1027.28,0.00023013,9]
[334175744,1722808247179,-1622.51,0.00023013,9]
[334175746,1722808247191,-500.0,0.00023013,9]
[334175748,1722808247207,-500.0,0.00023013,9]
[334175750,1722808247217,-500.0,0.00023013,9]
[334175751,1722808247226,-500.0,0.00023013,9]
[334175753,1722808247236,-1707.63,0.00023013,9]
[334175755,1722808247245,-500.0,0.00023013,9]
[334175757,1722808247255,-500.0,0.00023013,9]
[334175759,1722808247264,-500.0,0.00023013,9]
[334175761,1722808247275,-500.0,0.00023013,9]
[334175763,1722808247284,-500.0,0.00023013,9]
[334175765,1722808247293,-3236.7,0.00023013,9]
[334175767,1722808247302,-2599.43,0.00023013,9]
[334175769,1722808247311,-1221.77,0.00023013,9]
[334175771,1722808247320,-733.71,0.00023013,9]
[334175773,1722808247331,-717.53,0.00023013,9]
[334175775,1722808247342,-1426.02,0.00023013,9]
[334175776,1722808247353,-500.0,0.00023013,9]
[334175778,1722808247362,-915.39,0.00023013,9]
[334175780,1722808247371,-500.0,0.00023013,9]
[334175782,1722808247381,-500.0,0.00023013,9]
[334175784,1722808247391,-500.0,0.00023013,9]
[334175786,1722808247400,-500.0,0.00023013,9]
[334175788,1722808247410,-546.42,0.00023013,9]
[334175790,1722808247422,-1846.72,0.00023013,9]
[334175792,1722808247433,-1432.97,0.00023013,9]
[334175794,1722808247445,-500.0,0.00023013,9]
[334175796,1722808247454,-500.0,0.00023013,9]
[334175798,1722808247463,-500.0,0.00023013,9]
[334175800,1722808247473,-5800.89,0.00023013,9]
[334175802,1722808247483,-850.8,0.00023013,9]
[334175804,1722808247492,-2314.63,0.00023013,9]
[334175806,1722808247502,-635.84,0.00023013,9]
[334175807,1722808247511,-500.0,0.00023013,9]
[334175808,1722808247521,-1171.12,0.00023013,9]
[334175809,1722808247531,-500.0,0.00023013,9]
[334175810,1722808247542,-500.0,0.00023013,9]
[334175811,1722808247551,-500.0,0.00023013,9]
[334175812,1722808247561,-1133.24,0.00023013,9]
[334175813,1722808247570,-4311.17,0.00023013,9]
[334175814,1722808247580,-500.0,0.00023013,9]
[334175815,1722808247589,-1437.87,0.00023013,9]
[334175816,1722808247599,-1330.19,0.00023013,9]
[334175817,1722808247608,-500.0,0.00023013,9]
[334175818,1722808247617,-870.44,0.00023013,9]
[334175819,1722808247629,-839.24,0.00023013,9]
[334175820,1722808247638,-500.0,0.00023013,9]
[334175821,1722808247648,-500.0,0.00023013,9]
[334175822,1722808247658,-500.0,0.00023013,9]
[334175824,1722808247668,-958.07,0.00023013,9]
[334175826,1722808247678,-638.43,0.00023013,9]
[334175828,1722808247691,-500.0,0.00023013,9]
[334175830,1722808247701,-3388.84,0.00023013,9]
[334175832,1722808247710,-500.0,0.00023013,9]
[334175834,1722808247721,-2651.96,0.00023013,9]
[334175836,1722808247730,-3905.85,0.00023013,9]
[334175838,1722808247740,-500.0,0.00023013,9]
[334175840,1722808247750,-500.0,0.00023013,9]
[334175842,1722808247759,-1565.08,0.00023013,9]
[334175844,1722808247769,-500.0,0.00023013,9]
[334175846,1722808247779,-688.02,0.00023013,9]
[334175848,1722808247788,-939.01,0.00023013,9]
[334175850,1722808247798,-743.42,0.00023013,9]
[334175852,1722808247807,-500.0,0.00023013,9]
[334175854,1722808247816,-517.78,0.00023013,9]
[334175856,1722808247826,-887.24,0.00023013,9]
[334175857,1722808247836,-500.0,0.00023013,9]
[334175859,1722808247845,-500.0,0.00023013,9]
[334175861,1722808247854,-1537.92,0.00023013,9]
[334175863,1722808247864,-500.0,0.00023013,9]
[334175865,1722808247874,-500.0,0.00023013,9]
[334175867,1722808247883,-1015.22,0.00023013,9]
[334175869,1722808247893,-500.0,0.00023013,9]
[334175871,1722808247902,-686.97,0.00023013,9]
[334175873,1722808247911,-500.0,0.00023013,9]
[334175875,1722808247920,-500.0,0.00023013,9]
[334175877,1722808247930,-500.0,0.00023013,9]
[334175879,1722808247943,-1597.27,0.00023013,9]
[334175881,1722808247952,-500.0,0.00023013,9]
[334175883,1722808247962,-1889.71,0.00023013,9]
[334175885,1722808247971,-500.0,0.00023013,9]
[334175887,1722808247981,-500.0,0.00023013,9]
[334175889,1722808247991,-500.0,0.00023013,9]
[334175891,1722808248001,-968.49,0.00023013,9]
[334175893,1722808248010,-945.11,0.00023013,9]
[334175895,1722808248020,-702.57,0.00023013,9]
[334175897,1722808248029,-1609.75,0.00023013,9]
[334175899,1722808248038,-726.95,0.00023013,9]
[334175901,1722808248047,-1401.14,0.00023013,9]
[334175903,1722808248057,-964.2,0.00023013,9]
[334175905,1722808248066,-562.42,0.00023013,9]
[334175907,1722808248076,-11521.83,0.00023013,9]
[334175908,1722808248086,-500.0,0.00023013,9]
[334175910,1722808248094,-500.0,0.00023013,9]
[334175912,1722808248103,-722.55,0.00023013,9]
[334175914,1722808248111,-1538.43,0.00023013,9]
[334175916,1722808248121,-500.0,0.00023013,9]
[334175918,1722808248133,-1248.45,0.00023013,9]
[334175920,1722808248142,-615.33,0.00023013,9]
[334175922,1722808248152,-585.46,0.00023013,9]
[334175924,1722808248162,-1134.32,0.00023013,9]
[334175926,1722808248172,-1241.97,0.00023013,9]
[334175928,1722808248182,-156.85785686,0.00023013,9]
[334175930,1722808248200,-801.79214314,0.00023013,9]
[334175932,1722808248211,-1175.13,0.00023013,9]
[334175934,1722808248221,-389.92012038,0.00023013,9]
[334175938,1722808248251,-170.73987962,0.00023013,9]
[334175940,1722808248260,-1248.26624453,0.00023013,9]
[334175942,1722808248272,-410.50375547,0.00023013,9]
[334175944,1722808248282,-500.0,0.00023013,9]
[334175946,1722808248291,-500.0,0.00023013,9]
[334175948,1722808248301,-1196.69625232,0.00023013,9]
[334175951,1722808248313,-1205.00374768,0.00023013,9]
[334175952,1722808248323,-916.68432594,0.00023013,9]
[334175955,1722808248335,-353.10567406,0.00023013,9]
[334175957,1722808248348,-500.0,0.00023013,9]
[334175959,1722808248358,-500.0,0.00023013,9]
[334175961,1722808248368,-500.0,0.00023013,9]
[334175963,1722808248377,-500.0,0.00023013,9]
[334175965,1722808248389,-500.0,0.00023013,9]
[334175967,1722808248399,-1678.39297255,0.00023013,9]
[334175969,1722808248411,-74.23702745,0.00023013,9]
[334175971,1722808248421,-1075.56,0.00023013,9]
[334175973,1722808248433,-500.0,0.00023013,9]
[334175975,1722808248446,-1468.40297253,0.00023013,9]
[334175977,1722808248459,-131.02702747,0.00023013,9]
[334175979,1722808248470,-500.0,0.00023013,9]
[334175981,1722808248479,-156.97047253,0.00023013,9]
[334175984,1722808248495,-377.63072068,0.00023013,9]
[334175986,1722808248507,-354.81880679,0.00023013,9]
[334175988,1722808248517,-969.47,0.00023013,9]
[334175990,1722808248527,-1818.89,0.00023013,9]
[334175992,1722808248537,-294.50543327,0.00023013,9]
[334175994,1722808248547,-1037.48,0.00023013,9]
[334175996,1722808248557,-1259.11,0.00023013,9]
[334175998,1722808248566,-500.0,0.00023013,9]
[334176000,1722808248576,-500.0,0.00023013,9]
[334176002,1722808248586,-834.84,0.00023013,9]
[334176003,1722808248595,-500.0,0.00023013,9]